[Event "Croatian 1A League 2022"]
[Site "Porec"]
[Date "2022.09.30"]
[Round "7.15"]
[White "Ivekovic, Bozidar"]
[Black "Leventic, Ivan"]
[Result "1/2-1/2"]
[ECO "C43"]
[WhiteElo "2407"]
[BlackElo "2384"]
[Annotator "TA"]
[PlyCount "95"]
[EventDate "2022.09.24"]
[EventType "team-tourn"]
[EventCountry "CRO"]
[SourceTitle "playchess.com"]
[Source "ChessBase"]
[SourceQuality "1"]
[TimeControl "40/5400+30:1800+30"]

{[%evp 9,95,6,18,0,36,35,59,52,80,59,85,66,67,83,106,138,101,45,43,49,133,85,101,112,104,55,78,58,44,57,63,75,67,62,66,70,70,62,66,57,68,51,61,73,79,62,95,99,143,0,0,0,0,0,0,0,0,0,0,0,0,0,0,0,0,0,0,0,0,0,0,0,0,0,0,0,0,0,0,0,0,0,0,0,0,0,0,0]} 1. e4 {[%emt 0:00:02]} e5 {[%emt 0:00:38]} 2. Nf3 {[%emt 0:00:13]} Nf6 {[%emt 0:00:34]} 3. d4 {[%emt 0:00:49]} Nxe4 {[%emt 0:01:24]} 4. dxe5 {[%emt 0:00:17]} d5 {[%emt 0:01:41]} 5. Nbd2 {[%emt 0:00:19]} Be7 {[%emt 0:01:41]} 6. c3 {[%emt 0:13:49] [#] C43: Petroff Defence: 3 d4.} Bf5 $146 {[%emt 0:06:56]} ({Predecessor:} 6... O-O 7. Bd3 Nxd2 8. Bxd2 Bg4 9. h3 Bh5 10. Qc2 Bg6 11. Bxg6 hxg6 12. O-O-O Qd7 13. h4 Nc6 {1-0 (59) Bodnaruk,A (2432)-Gritsayeva,O (2373) Sochi 2017}) 7. Nd4 {[%emt 0:05:58]} Bg6 {[%emt 0:03:00]} 8. Nxe4 {[%emt 0:22:30] White is slightly better.} dxe4 {[%emt 0:22:39]} 9. Qb3 {[%emt 0:00:16]} Qc8 {[%emt 0:04:16]} 10. h4 {[%emt 0:00:14] [#] Threatens to win with h5. White has more active pieces.} h5 {[%emt 0:03:01]} 11. g3 {[%emt 0:00:07] Bh3 is the strong threat.} Nc6 {[%emt 0:12:03]} 12. Bh3 {[%emt 0:14:36]} Nxd4 {[%emt 0:00:57]} 13. Qa4+ {[%emt 0:05:00]} (13. cxd4 $16 Bf5 14. Bxf5 Qxf5 15. Qb5+ (15. Qxb7 O-O $16) 15... Qd7 16. Qxb7) 13... b5 $14 {[%emt 0:00:25]} 14. Qxd4 {[%emt 0:00:03]} Qd8 {[%emt 0:00:25]} (14... Bf5 $14 15. Bg2 Qb7) 15. Qxd8+ {[%emt 0:00:32]} (15. Be3 $142) 15... Rxd8 $16 {[%emt 0:05:15]} 16. Be3 {[%emt 0:00:09]} a5 {[%emt 0:02:55]} 17. Rd1 {[%emt 0:00:23]} (17. O-O $16) 17... Rd3 {[%emt 0:02:30]} 18. Bf1 {[%emt 0:04:23]} Rxd1+ {[%emt 0:00:30]} 19. Kxd1 {[%emt 0:00:03]} c6 {[%emt 0:00:18]} 20. Bh3 {[%emt 0:00:03] Inhibits Bf5.} f5 {[%emt 0:09:18]} 21. exf6 {[%emt 0:06:49]} gxf6 {[%emt 0:00:30]} 22. Kc2 {[%emt 0:02:14]} f5 {[%emt 0:04:59]} 23. a4 {[%emt 0:03:21]} bxa4 {[%emt 0:01:23]} 24. Ra1 {[%emt 0:01:16]} a3 {[%emt 0:00:23]} 25. bxa3 {[%emt 0:00:01]} a4 {[%emt 0:02:26]} 26. Rb1 {[%emt 0:02:58]} O-O {[%emt 0:00:14]} 27. Rb6 {[%emt 0:00:10]} Bxa3 {[%emt 0:06:56]} 28. Rxc6 {[%emt 0:00:23]} Be8 {[%emt 0:02:23]} 29. Rc7 {[%emt 0:08:26]} ({White should try} 29. Rh6 $16) 29... Bb5 $11 {[%emt 0:00:25] The position is equal.} 30. c4 {[%emt 0:01:30]} Bd6 {[%emt 0:00:08]} 31. Ra7 {[%emt 0:00:10]} Bxc4 {[%emt 0:00:51] [#] aiming for ...a3.} 32. Rxa4 {[%emt 0:00:35]} Bd3+ {[%emt 0:00:30]} 33. Kd2 {[%emt 0:01:37]} Rb8 {[%emt 0:01:33]} 34. Bxf5 {[%emt 0:02:22] Strongly threatening Bd4.} Rb2+ {[%emt 0:00:22]} 35. Kd1 {[%emt 0:00:02]} Rb1+ {[%emt 0:02:31]} 36. Bc1 {[%emt 0:00:13]} Bc5 {[%emt 0:01:11]} 37. Bxe4 {[%emt 0:03:51]} Bxe4 {[%emt 0:00:05]} 38. Rxe4 {[%emt 0:00:03]} Bxf2 {[%emt 0:00:07][%mdl 4096] Endgame KRB-KRB} 39. Re2 {[%emt 0:01:45] Hoping for Kc2.} Bd4 {[%emt 0:00:26]} (39... Bxg3 $2 40. Rg2 $18) 40. Kc2 {[%emt 0:00:00]} Rb5 {[%emt 0:00:00]} 41. Kd3 {[%emt 0:01:57]} Bf6 {[%emt 0:03:57]} 42. Bf4 {[%emt 0:02:08]} Kf7 {[%emt 0:00:17]} 43. Ra2 {[%emt 0:00:11]} Kg6 {[%emt 0:00:25]} 44. Ke4 {[%emt 0:00:06]} Rb4+ {[%emt 0:00:25]} 45. Kf3 {[%emt 0:05:12]} Rb3+ {[%emt 0:00:08]} 46. Kg2 {[%emt 0:00:04]} Rb2+ {[%emt 0:00:18]} 47. Rxb2 {[%emt 0:00:22]} Bxb2 {[%emt 0:00:08]} 48. Kf3 {[%emt 0:00:08] Weighted Error Value: White=0.11 (very precise) /Black=0.10 (very precise)} 1/2-1/2

[Event "Croatian 1A League 2022"]
[Site "Porec"]
[Date "2022.09.30"]
[Round "7.16"]
[White "Zivkovic, Vjekoslav"]
[Black "Ostovic, Matija"]
[Result "1/2-1/2"]
[ECO "B07"]
[WhiteElo "2364"]
[BlackElo "2386"]
[Annotator "TA"]
[PlyCount "20"]
[EventDate "2022.09.24"]
[EventType "team-tourn"]
[EventCountry "CRO"]
[SourceTitle "playchess.com"]
[Source "ChessBase"]
[SourceQuality "1"]
[TimeControl "40/5400+30:1800+30"]

{[%evp 11,20,48,56,37,57,52,58,48,59,25,48]} 1. e4 {[%emt 0:00:17]} d6 {[%emt 0:00:19]} 2. d4 {[%emt 0:02:00]} Nf6 {[%emt 0:00:05]} 3. f3 {[%emt 0:01:43]} e5 {[%emt 0:00:42]} 4. dxe5 {[%emt 0:00:04]} dxe5 {[%emt 0:00:06]} 5. Qxd8+ {[%emt 0:00:06]} Kxd8 {[%emt 0:00:06]} 6. Bc4 {[%emt 0:00:05]} Ke8 $1 {[%emt 0:00:40] The main line 6...Ke8 scores better than 6...Be6.} 7. Be3 {[%emt 0:00:04] B07: Pirc Defence: Miscellaneous Systems.} a6 {[%emt 0:02:45]} 8. a4 {[%emt 0:00:50] [#]} Nbd7 $146 {[%emt 0:02:00]} ({Predecessor:} 8... Nc6 9. c3 Bd6 10. b4 Ke7 11. Nd2 h6 12. Ne2 Be6 13. a5 Nd7 14. h4 b5 15. axb6 cxb6 {1-0 (42) Garcia Palermo,C (2403)-Romero Barreto,J (2340) Mar del Plata 2022}) 9. Nd2 {[%emt 0:01:43]} Bc5 {[%emt 0:10:15]} 10. Kf2 {[%emt 0:00:46]} b6 {[%emt 0:04:30] Black did not feel at home in the position after the opening.  Weighted Error Value: White=0.17 (very precise) /Black=0.07 (flawless)} 1/2-1/2

[Event "Croatian 1A League 2022"]
[Site "Porec"]
[Date "2022.09.30"]
[Round "7.17"]
[White "Boric, Muhamed"]
[Black "Medak, Bojan"]
[Result "1/2-1/2"]
[ECO "A46"]
[WhiteElo "2356"]
[BlackElo "2353"]
[Annotator "TA"]
[PlyCount "34"]
[EventDate "2022.09.24"]
[EventType "team-tourn"]
[EventCountry "CRO"]
[SourceTitle "playchess.com"]
[Source "ChessBase"]
[SourceQuality "1"]
[TimeControl "40/5400+30:1800+30"]

{[%evp 10,21,18,23,12,13,15,0,0,0,9,10,22,10]} 1. d4 {[%emt 0:01:05]} Nf6 {[%emt 0:00:11]} 2. Nf3 {[%emt 0:03:30]} c5 {[%emt 0:00:23]} 3. c3 {[%emt 0:03:29]} e6 {[%emt 0:00:18]} 4. Bf4 {[%emt 0:01:43]} cxd4 {[%emt 0:01:29]} 5. cxd4 {[%emt 0:05:31]} Qb6 {[%emt 0:00:34]} 6. Qc2 {[%emt 0:01:19]} Nc6 {[%emt 0:00:46][%cal Bb8c6,Bc6b4,Bb4d5][%mdl 32] A46: 1 d4 Nf6 2 Nf3 e6: Torre, London and Colle Systems.} 7. e3 {[%emt 0:00:05] The position is equal.} Nb4 {[%emt 0:02:29]} 8. Qc1 {[%emt 0:04:01]} Nbd5 {[%emt 0:09:45]} 9. Bg3 {[%emt 0:00:36]} Ne4 {[%emt 0:01:11]} 10. Bd3 {[%emt 0:00:20]} Nxg3 {[%emt 0:03:08]} 11. hxg3 {[%emt 0:00:11] [#] An even fight not without its subleties.  Weighted Error Value: White=0.03 (flawless) /Black=0.02 (flawless)} {Predecessor:} Nb4 $146 12. Be2 d6 13. Nc3 Bd7 14. a3 Na6 15. Qd2 g6 16. Ng5 h6 17. Nh3 Bg7 {½-½ (35) Ravi,T (2384)-Malakhatko,V (2507) Mumbai 2016} 1/2-1/2

[Event "Croatian 1A League 2022"]
[Site "Porec"]
[Date "2022.09.30"]
[Round "7.18"]
[White "Mrkonjic, Nenad"]
[Black "Zovko, Mario"]
[Result "1/2-1/2"]
[ECO "D02"]
[WhiteElo "2347"]
[BlackElo "2306"]
[Annotator "TA"]
[PlyCount "34"]
[EventDate "2022.09.24"]
[EventType "team-tourn"]
[EventCountry "CRO"]
[SourceTitle "playchess.com"]
[Source "ChessBase"]
[SourceQuality "1"]
[TimeControl "40/5400+30:1800+30"]

{[%evp 16,21,0,-11,0,-15,-13,-11]} 1. d4 {[%emt 0:00:02]} d5 {[%emt 0:04:19]} 2. Nf3 {[%emt 0:01:27]} Nf6 {[%emt 0:00:20]} 3. Bf4 {[%emt 0:02:03]} c5 {[%emt 0:02:35]} 4. c3 {[%emt 0:05:26]} e6 {[%emt 0:05:26]} 5. e3 {[%emt 0:04:05]} Bd6 {[%emt 0:01:08]} 6. Bxd6 {[%emt 0:01:40]} Qxd6 {[%emt 0:00:10]} 7. Be2 {[%emt 0:00:24]} O-O {[%emt 0:00:50]} 8. O-O {[%emt 0:01:08]} Nc6 {[%emt 0:00:34]} 9. Nbd2 {[%emt 0:06:37] The position is equal.} b6 {[%emt 0:02:25] D02: 1 d4 d5 2 Nf3 sidelines, including 2...Nf6 3 g3 and 2...Nf6 3 Bf4.} 10. h3 {[%emt 0:00:14]} Bb7 {[%emt 0:00:05]} 11. a4 {[%emt 0:00:19] [#] An uneventful encounter.  Weighted Error Value: White=0.08 (flawless) /Black=0.06 (flawless)} {Predecessor:} Rad8 $146 12. Qb1 Ba8 13. Rd1 Qe7 14. Bd3 e5 15. dxe5 Nxe5 16. Be2 Rd6 17. Nxe5 Qxe5 {½-½ (60) Bezy,C (2040)-Flick,A (2310) Nancy 2018} 1/2-1/2

[Event "Croatian 1A League 2022"]
[Site "Porec"]
[Date "2022.09.30"]
[Round "7.19"]
[White "Fedorchuk, Sergey A."]
[Black "Shevchenko, Kirill"]
[Result "1/2-1/2"]
[WhiteElo "2617"]
[BlackElo "2645"]
[Annotator "TA"]
[PlyCount "28"]
[EventDate "2022.09.24"]
[EventType "team-tourn"]
[EventCountry "CRO"]
[SourceTitle "playchess.com"]
[Source "ChessBase"]
[SourceQuality "1"]
[TimeControl "40/5400+30:1800+30"]

{[%evp 10,14,29,22,29,26,22]} 1. e4 {[%emt 0:00:03]} e6 {[%emt 0:00:04]} 2. d4 {[%emt 0:00:11]} d5 {[%emt 0:00:04]} 3. Nd2 {[%emt 0:00:18]} c5 {[%emt 0:00:17]} 4. exd5 {[%emt 0:00:37]} Qxd5 {[%emt 0:00:27]} 5. Ngf3 {[%emt 0:00:21]} cxd4 {[%emt 0:01:01]} 6. Bc4 {[%emt 0:00:11]} Qd7 {[%emt 0:00:38] C07: French Tarrasch: 3...c5, 4 Ngf3 and 4 exd5 Qxd5.} 7. O-O {[%emt 0:00:12][%mdl 1024] White has compensation.} Nc6 {[%emt 0:00:48] [#] Not much happened in this game.} {Predecessor:} 8. Nb3 $146 a6 9. Nbxd4 Nxd4 10. Nxd4 Qc7 11. Bd3 Bd6 12. Re1 Bxh2+ 13. Kh1 Be5 14. Nxe6 Bxe6 {½-½ (49) Piorun,K (2623)-Shevchenko,K (2645) Bydgoszcz 2022} 1/2-1/2

[Event "Croatian 1A League 2022"]
[Site "Porec"]
[Date "2022.09.30"]
[Round "7.21"]
[White "Lalic, Bogdan"]
[Black "Muse, Drazen"]
[Result "1/2-1/2"]
[WhiteElo "2393"]
[BlackElo "2311"]
[Annotator "TA"]
[PlyCount "32"]
[EventDate "2022.09.24"]
[EventType "team-tourn"]
[EventCountry "CRO"]
[SourceTitle "playchess.com"]
[Source "ChessBase"]
[SourceQuality "1"]
[TimeControl "40/5400+30:1800+30"]

{[%evp 13,14,22,18]} 1. c4 {[%emt 0:00:06]} c6 {[%emt 0:00:05]} 2. d4 {[%emt 0:00:14]} d5 {[%emt 0:00:04]} 3. cxd5 {[%emt 0:00:14]} cxd5 {[%emt 0:00:04]} 4. Nc3 {[%emt 0:00:14]} Nf6 {[%emt 0:00:04]} 5. Bf4 {[%emt 0:00:13]} Nc6 {[%emt 0:00:20]} 6. e3 {[%emt 0:00:12]} a6 {[%emt 0:01:19]} 7. Bd3 {[%emt 0:00:15]} Bg4 {[%emt 0:00:32] [#]} {Predecessor:} 8. f3 $146 {D10: Slav Defence: 3 cxd5 (without early Nf3) and 3 Nc3.} Bh5 9. g4 Bg6 10. Nge2 e6 11. h4 Bd6 12. Kf2 Bxd3 13. Qxd3 Bxf4 14. Nxf4 Qd6 15. Rac1 Nd7 16. Nce2 O-O {½-½ (70) Yakubboev,N (2620)-Sethuraman,S (2625) Abu Dhabi 2022} 1/2-1/2

[Event "Croatian 1A League 2022"]
[Site "Porec"]
[Date "2022.09.30"]
[Round "7.22"]
[White "Trbojevic, Mladen"]
[Black "Zaja, Ivan"]
[Result "1/2-1/2"]
[ECO "C95"]
[WhiteElo "2332"]
[BlackElo "2417"]
[Annotator "TA"]
[PlyCount "47"]
[EventDate "2022.09.24"]
[EventType "team-tourn"]
[EventCountry "CRO"]
[SourceTitle "playchess.com"]
[Source "ChessBase"]
[SourceQuality "1"]
[TimeControl "40/5400+30:1800+30"]

{[%evp 29,30,22,43]} 1. e4 {[%emt 0:00:04]} e5 {[%emt 0:00:04]} 2. Nf3 {[%emt 0:00:04]} Nc6 {[%emt 0:00:04]} 3. Bb5 {[%emt 0:00:05]} a6 {[%emt 0:00:03]} 4. Ba4 {[%emt 0:00:05]} Nf6 {[%emt 0:00:02]} 5. O-O {[%emt 0:00:05]} Be7 {[%emt 0:00:03]} 6. Re1 {[%emt 0:00:06]} b5 {[%emt 0:00:04]} 7. Bb3 {[%emt 0:00:05]} d6 {[%emt 0:00:05]} 8. c3 {[%emt 0:00:05]} O-O {[%emt 0:00:04]} 9. h3 {[%emt 0:00:05]} Nb8 {[%emt 0:00:10]} 10. d4 {[%emt 0:00:18]} Nbd7 {[%emt 0:00:05]} 11. Nbd2 {[%emt 0:00:14]} Bb7 {[%emt 0:00:12]} 12. Bc2 {[%emt 0:00:21]} Re8 {[%emt 0:00:06]} 13. Nf1 {[%emt 0:00:15]} Bf8 {[%emt 0:00:05]} 14. Ng3 {[%emt 0:00:12]} g6 {[%emt 0:00:05]} 15. a4 {[%emt 0:00:13]} Bg7 {[%emt 0:00:21] [#]} {Predecessor:} 16. Bd3 $146 {C95: Closed Ruy Lopez: Breyer Variation with 10 d4.} c6 17. b3 Qc7 18. Bb2 Rad8 19. axb5 axb5 20. Qc2 Qb6 21. Rad1 c5 22. d5 Ra8 23. Ra1 Reb8 24. Bf1 {0-1 (84) Pichot,A (2630)-Vidit,S (2726) Chess.com INT 2021} 1/2-1/2

[Event "Croatian 1A League 2022"]
[Site "Porec"]
[Date "2022.09.30"]
[Round "7.23"]
[White "Kovacevic, Blazimir"]
[Black "Krstic, Uros"]
[Result "1/2-1/2"]
[ECO "A26"]
[WhiteElo "2405"]
[BlackElo "2323"]
[Annotator "TA"]
[PlyCount "24"]
[EventDate "2022.09.24"]
[EventType "team-tourn"]
[EventCountry "CRO"]
[SourceTitle "playchess.com"]
[Source "ChessBase"]
[SourceQuality "1"]
[TimeControl "40/5400+30:1800+30"]

{[%evp 16,24,25,28,35,2,75,26,53,0,0]} 1. c4 {[%emt 0:00:02]} Nf6 {[%emt 0:00:10]} 2. Nc3 {[%emt 0:00:05]} e5 {[%emt 0:00:06]} 3. g3 {[%emt 0:00:06]} Nc6 {[%emt 0:00:08]} 4. Bg2 {[%emt 0:00:06]} g6 {[%emt 0:00:15]} 5. d3 {[%emt 0:00:18]} d6 {[%emt 0:00:06]} 6. e4 {[%emt 0:00:14]} Bg7 {[%emt 0:00:12]} 7. Nge2 {[%emt 0:00:06]} O-O {[%emt 0:00:08]} 8. O-O {[%emt 0:00:06]} Nd7 {[%emt 0:00:14]} 9. Be3 {[%emt 0:00:33] 9.f4 is more fashionable.} Nc5 {[%emt 0:00:13] A26: English Opening vs King's Indian with ...Nc6 and d3.} 10. Qd2 {[%emt 0:00:21]} Re8 {[%emt 0:00:23] [#]} (10... Nd4 $1 $11) 11. Rab1 $146 {[%emt 0:00:21]} (11. f4 $16) ({Predecessor:} 11. Rae1 Ne6 12. f4 Ned4 13. Nd5 exf4 14. Ndxf4 Be6 15. b3 a5 16. Nxd4 Nxd4 17. Nd5 Bxd5 18. cxd5 {½-½ (34) Skjolas,E (1709)-Vesterli,M (2141) Helsingor 2016}) 11... a5 {[%emt 0:00:21]} 12. h3 {[%emt 0:00:31]} (12. d4 $14 exd4 13. Nxd4) 12... Nd4 {[%emt 0:00:42] Weighted Error Value: White=0.35/Black=0.44} 1/2-1/2

[Event "Croatian 1A League 2022"]
[Site "Porec"]
[Date "2022.09.30"]
[Round "7.25"]
[White "Motylev, Alexander"]
[Black "Donchenko, Alexander"]
[Result "1/2-1/2"]
[ECO "C88"]
[WhiteElo "2635"]
[BlackElo "2639"]
[Annotator "TA"]
[PlyCount "42"]
[EventDate "2022.09.24"]
[EventType "team-tourn"]
[EventCountry "CRO"]
[SourceTitle "playchess.com"]
[Source "ChessBase"]
[SourceQuality "1"]
[TimeControl "40/5400+30:1800+30"]

{[%evp 22,29,12,0,0,0,22,16,17,14]} 1. e4 {[%emt 0:00:04]} e5 {[%emt 0:00:09]} 2. Nf3 {[%emt 0:00:18]} Nc6 {[%emt 0:00:07]} 3. Bb5 {[%emt 0:00:10]} a6 {[%emt 0:00:12]} 4. Ba4 {[%emt 0:00:07]} Nf6 {[%emt 0:00:11]} 5. O-O {[%emt 0:00:10]} Be7 {[%emt 0:00:12]} 6. Re1 {[%emt 0:00:56]} b5 {[%emt 0:00:12]} 7. Bb3 {[%emt 0:00:07]} O-O {[%emt 0:00:10]} 8. a4 {[%emt 0:00:07]} b4 {[%emt 0:00:18]} 9. d4 {[%emt 0:02:06]} d6 {[%emt 0:00:22]} 10. dxe5 {[%emt 0:00:26]} Nxe5 {[%emt 0:00:07]} 11. Nxe5 {[%emt 0:00:19]} dxe5 {[%emt 0:00:06]} 12. Bg5 {[%emt 0:01:10] The position is equal.} Qxd1 {[%emt 0:07:47] C88: Closed Ruy Lopez: Anti-Marshall Systems.} 13. Rxd1 {[%emt 0:00:09]} Bb7 {[%emt 0:00:06]} 14. Nd2 {[%emt 0:03:43]} Bc5 {[%emt 0:01:43]} 15. Bxf6 {[%emt 0:01:11] [#] A balanced but interesting game.  Weighted Error Value: White=0.09 (flawless) /Black=0.06 (flawless)} {Predecessor:} gxf6 $146 16. Bd5 Bxd5 17. exd5 f5 18. Nb3 Bd6 19. Na5 Kg7 20. c4 Kf6 21. Rac1 e4 {½-½ (40) Weinstein,N (2475)-Commons,K (2485) Pasadena 1978} 1/2-1/2

[Event "Croatian 1A League 2022"]
[Site "Porec"]
[Date "2022.09.30"]
[Round "7.26"]
[White "Livaic, Leon"]
[Black "Postny, Evgeny"]
[Result "1/2-1/2"]
[ECO "E06"]
[WhiteElo "2565"]
[BlackElo "2573"]
[Annotator "TA"]
[PlyCount "145"]
[EventDate "2022.09.24"]
[EventType "team-tourn"]
[EventCountry "CRO"]
[SourceTitle "playchess.com"]
[Source "ChessBase"]
[SourceQuality "1"]
[TimeControl "40/5400+30:1800+30"]

{[%evp 18,145,14,22,12,10,14,13,12,13,10,0,12,8,0,0,0,0,0,0,0,0,0,0,9,0,2,0,0,0,0,0,0,5,27,18,14,7,7,7,7,0,0,0,0,0,12,13,19,18,22,15,39,22,19,25,40,39,41,38,39,39,39,39,39,39,39,39,39,39,39,42,42,42,42,42,42,42,63,59,71,73,72,77,77,61,65,41,41,41,66,66,66,60,85,0,75,66,65,65,80,18,41,0,0,0,0,0,0,0,0,0,0,0,0,0,0,0,0,0,0,0,0,0,0,0,0,0,0,0]} 1. d4 {[%emt 0:00:04]} d5 {[%emt 0:00:14]} 2. c4 {[%emt 0:00:05]} e6 {[%emt 0:00:06]} 3. Nf3 {[%emt 0:00:12]} Nf6 {[%emt 0:00:12]} 4. Nc3 {[%emt 0:00:05]} Be7 {[%emt 0:00:11]} 5. g3 {[%emt 0:00:06]} O-O {[%emt 0:00:32]} 6. Bg2 {[%emt 0:00:04]} dxc4 {[%emt 0:00:35]} 7. Ne5 {[%emt 0:00:08]} c5 {[%emt 0:00:27]} 8. dxc5 {[%emt 0:00:07]} Qxd1+ {[%emt 0:00:11]} 9. Nxd1 {[%emt 0:00:30]} Bxc5 {[%emt 0:00:17]} 10. O-O {[%emt 0:00:20]} Nc6 {[%emt 0:03:29] E06: Closed Catalan: Early deviations.} 11. Bxc6 {[%emt 0:00:16]} bxc6 {[%emt 0:00:08]} 12. Be3 {[%emt 0:00:05]} Bb6 {[%emt 0:03:09]} 13. Bxb6 {[%emt 0:00:19]} axb6 {[%emt 0:00:07]} 14. Nc3 {[%emt 0:00:07]} Nd5 {[%emt 0:09:06]} 15. a4 {[%emt 0:00:35] [#]} Nxc3 $146 {[%emt 0:06:53]} ({Predecessor:} 15... f6 16. Nxc4 Rb8 17. Rfc1 Ba6 18. Ne4 Rfc8 19. Kf1 c5 20. b3 Rc6 21. Ke1 Bxc4 22. Rxc4 {½-½ (43) Le,Q (2709)-Nakamura,H (2736) chess24.com INT 2021}) 16. bxc3 {[%emt 0:00:04]} b5 {[%emt 0:24:22]} 17. axb5 {[%emt 0:00:15]} Rxa1 {[%emt 0:00:07]} 18. Rxa1 {[%emt 0:00:02]} cxb5 $11 {[%emt 0:00:08][%mdl 4096] Endgame KRB-KRN} 19. Ra7 {[%emt 0:00:04]} f6 {[%emt 0:00:39]} 20. Nc6 {[%emt 0:00:25]} Re8 {[%emt 0:00:53]} 21. Rc7 {[%emt 0:36:46] [#] aiming for Ne7+.} Kf8 {[%emt 0:01:05] Against Ne7} 22. Na7 {[%emt 0:00:51][%csl LRb5,LRc8]} Ba6 {[%emt 0:00:07][%cal Ob5b4]} 23. Rc6 {[%emt 0:00:06]} Bb7 {[%emt 0:00:29]} 24. Rb6 {[%emt 0:00:12]} Bd5 {[%emt 0:31:25] [#] Threatens to win with ...Ra8.} 25. Nxb5 {[%emt 0:01:07][%cal Oe2e4]} Rd8 {[%emt 0:00:46]} 26. f3 {[%emt 0:01:36] Threatening e4.} e5 {[%emt 0:01:49]} 27. Kf2 {[%emt 0:03:46]} Ke7 {[%emt 0:01:44]} 28. g4 {[%emt 0:17:31]} Rd7 {[%emt 0:01:48]} 29. Na3 {[%emt 0:00:09]} Ra7 {[%emt 0:04:13]} 30. Nc2 {[%emt 0:00:06]} Be6 {[%emt 0:00:10]} 31. Ke3 {[%emt 0:03:12]} Rd7 {[%emt 0:04:35]} 32. Nb4 {[%emt 0:01:19]} Rd6 {[%emt 0:02:10]} 33. Rb8 {[%emt 0:02:00]} Kf7 {[%emt 0:00:58]} 34. h4 {[%emt 0:00:36]} h6 {[%emt 0:00:05]} 35. Rb7+ {[%emt 0:00:54]} Rd7 {[%emt 0:00:08]} 36. Rb6 {[%emt 0:00:24]} Ke7 {[%emt 0:02:24]} 37. h5 {[%emt 0:03:57]} Rd6 {[%emt 0:00:59]} 38. Rb8 {[%emt 0:01:13]} Bf7 {[%emt 0:00:37]} 39. Ra8 {[%emt 0:02:55]} Be6 {[%emt 0:00:35]} 40. Ra5 {[%emt 0:00:00]} Rd7 {[%emt 0:00:00]} 41. Nc6+ {[%emt 0:14:01]} Kf7 $1 {[%emt 0:11:57]} 42. Ra8 {[%emt 0:12:47]} Bd5 {[%emt 0:03:10]} 43. Rc8 {[%emt 0:00:28]} g6 $1 {[%emt 0:03:08]} 44. hxg6+ {[%emt 0:04:44]} Kxg6 {[%emt 0:00:04]} 45. Na5 {[%emt 0:00:21]} h5 {[%emt 0:04:14]} 46. gxh5+ {[%emt 0:00:08]} Kxh5 {[%emt 0:00:05]} 47. Nxc4 {[%emt 0:00:15]} Bb7 {[%emt 0:00:29]} 48. Rc5 {[%emt 0:01:33]} Kg6 {[%emt 0:00:05]} 49. Nb2 {[%emt 0:04:39]} Bd5 {[%emt 0:03:42]} 50. Nd3 {[%emt 0:01:10]} Kf7 {[%emt 0:01:57]} 51. Nb4 {[%emt 0:06:26]} Be6 {[%emt 0:00:14]} 52. Ke4 {[%emt 0:01:12]} Rd2 {[%emt 0:00:26]} 53. Rc7+ {[%emt 0:00:20]} Kg6 {[%emt 0:00:07]} 54. Ke3 {[%emt 0:00:09]} Rb2 {[%emt 0:02:07]} 55. Nd3 {[%emt 0:00:34]} Rc2 {[%emt 0:01:25]} 56. Nb4 {[%emt 0:06:20]} Rb2 {[%emt 0:00:09]} 57. Rc6 {[%emt 0:01:47]} Kf7 {[%emt 0:00:22]} 58. Nd3 {[%emt 0:00:39]} Rc2 {[%emt 0:00:12]} 59. Nf2 {[%emt 0:01:54]} (59. f4 $16) 59... Bf5 {[%emt 0:00:57]} 60. c4 {[%emt 0:01:53]} Ke7 {[%emt 0:01:31] The position is equal.} 61. Ne4 {[%emt 0:02:11]} Bxe4 {[%emt 0:00:28]} 62. fxe4 {[%emt 0:00:04] KR-KR} Rc3+ {[%emt 0:00:43]} 63. Kd2 {[%emt 0:00:05]} Ra3 {[%emt 0:00:25]} 64. c5 {[%emt 0:01:00]} Ra4 {[%emt 0:00:26]} 65. Ke3 {[%emt 0:00:25]} Ra3+ {[%emt 0:00:14]} 66. Kf2 {[%emt 0:00:14]} Rc3 {[%emt 0:00:17]} 67. e3 {[%emt 0:00:21]} Kd7 {[%emt 0:00:53]} 68. Rd6+ {[%emt 0:00:10]} Kc7 {[%emt 0:01:21]} 69. Rxf6 {[%emt 0:02:43]} Rxc5 {[%emt 0:00:05]} 70. Kf3 {[%emt 0:00:09]} Kd7 {[%emt 0:00:27]} 71. Kg4 {[%emt 0:00:05]} Rc3 {[%emt 0:00:39]} 72. Rf3 {[%emt 0:00:16]} Ke6 {[%emt 0:00:13]} 73. Kg5 {[%emt 0:00:16] Weighted Error Value: White=0.06 (flawless) /Black=0.04 (flawless)} 1/2-1/2